bitfinex-derivatives/quotes_BTCF0:USTF0_20210108
["timestamp","ask_amount","ask_price","bid_price","bid_amount"]
[1610069808735,0.0789,38098.0,38093.0,0.13632608]
[1610069809134,0.0789,38098.0,38094.0,0.01887583]
[1610069809734,0.0789,38098.0,38079.0,0.1114]
[1610069809735,0.0789,38098.0,38080.0,0.01887738]
[1610069809936,0.13632608,38099.0,38095.0,0.01887867]
[1610069810136,0.61642608,38099.0,38095.0,0.01887867]
[1610069810335,0.61642608,38099.0,38081.0,0.01888156]
[1610069810536,0.61642608,38099.0,38096.0,0.01888407]
[1610069810735,0.61642608,38099.0,38096.0,0.01862202]
[1610069810938,3.9031,38088.0,38082.0,0.00026205]
[1610069811136,3.99968,38088.0,38048.0,0.04332876]
[1610069811335,3.99968,38088.0,38031.0,0.09598]
[1610069811336,3.99968,38088.0,38083.0,0.00026211]
[1610069811536,3.99968,38088.0,38049.0,0.01888886]
[1610069811937,3.99968,38088.0,38084.0,0.00026215]
[1610069812136,3.99968,38088.0,38050.0,0.01863053]
[1610069812338,3.99968,38088.0,38085.0,0.00026218]
[1610069812740,0.13632608,38086.0,38051.0,0.01889545]
[1610069812938,0.13632608,38086.0,38045.0,0.13632608]
[1610069813140,0.13632608,38086.0,38052.0,0.01889747]
[1610069813541,0.13632608,38086.0,38046.0,0.01889672]
[1610069813740,0.13632608,38086.0,38053.0,0.01889603]
[1610069813940,0.13632608,38086.0,38047.0,0.01889633]
[1610069814341,0.13632608,38086.0,38046.0,0.01889663]
[1610069814542,0.13632608,38086.0,38048.0,0.01889642]
[1610069814743,0.24275608,38058.0,38055.0,0.13632608]
[1610069814942,0.10643,38058.0,38055.0,0.13632608]
[1610069815142,0.10643,38058.0,38056.0,0.01889353]
[1610069815744,0.10643,38058.0,38056.0,0.0002622]
[1610069815945,0.0777,38057.0,38055.0,0.13632608]
[1610069816145,0.0777,38057.0,38056.0,0.01862407]
[1610069816344,0.0777,38057.0,38056.0,0.56872407]
[1610069816544,0.0777,38057.0,38056.0,0.56898614]
[1610069816745,0.2803,38115.0,38056.0,0.56898614]
[1610069817146,0.2803,38115.0,38056.0,0.56872407]
[1610069817346,0.2803,38115.0,38057.0,0.0188802]
[1610069817747,0.292,38150.0,38057.0,0.0188802]
[1610069817948,0.292,38150.0,38082.0,3.9891]
[1610069818148,0.2824,38149.0,38082.0,3.9891]
[1610069818348,0.08679,38149.0,38083.0,0.13316979]
[1610069818749,0.13632608,38084.0,38025.0,0.10955]
[1610069818948,0.23766608,38084.0,38020.0,2.30933932]
[1610069819148,0.23766608,38084.0,38026.0,0.01888435]
[1610069819549,3.40883,38027.0,38021.0,0.13324164]
[1610069819750,0.10523,38027.0,37995.0,0.04335892]
[1610069819951,3.3833,38022.0,37981.0,0.11448007]
[1610069820351,3.3833,38022.0,37996.0,0.01891255]
[1610069820551,3.3833,38022.0,37951.0,0.06232109]
[1610069820752,0.13632608,37952.0,37948.0,0.01]
[1610069821153,0.13742,37961.0,37948.0,0.01]
[1610069821354,0.13742,37961.0,37953.0,0.13632608]
[1610069821754,0.078,37960.0,37953.0,0.13632608]
[1610069821954,0.078,37960.0,37954.0,0.01892551]
[1610069823558,0.078,37960.0,37949.0,0.01892741]
[1610069823756,0.078,37960.0,37955.0,0.01892993]
[1610069823961,0.58532,37961.0,37950.0,0.01893153]
[1610069824358,0.58532,37961.0,37948.0,0.01]
[1610069824359,0.58532,37961.0,37956.0,0.01893424]
[1610069824558,0.58532,37961.0,37951.0,0.01893644]
[1610069824758,0.58532,37961.0,37948.0,0.01]
[1610069824759,0.13632608,37952.0,37948.0,0.01]
[1610069824960,0.22124608,37952.0,37948.0,0.01]
[1610069825159,0.22124608,37952.0,37949.0,0.01893604]
[1610069825560,4.187,37950.0,37949.0,0.01893604]
[1610069825759,4.187,37950.0,37948.0,0.01]
[1610069825961,4.187,37950.0,37949.0,0.01893804]
[1610069826160,4.187,37950.0,37949.0,0.03787846]
[1610069826961,0.22124608,37952.0,37949.0,0.03787846]
[1610069827361,0.08492,37952.0,37949.0,0.03787846]
[1610069827561,0.08492,37952.0,37950.0,0.01893944]
[1610069828161,4.21772,37952.0,37950.0,0.01893944]
[1610069828562,4.21772,37952.0,37950.0,0.00026285]
[1610069828762,0.13632608,37951.0,37950.0,0.00026285]
[1610069828961,0.13632608,37951.0,37949.0,0.01893804]
[1610069829163,0.13632608,37951.0,37950.0,0.00026285]
[1610069830563,0.13632608,37951.0,37949.0,0.01893804]
[1610069831162,0.13632608,37951.0,37948.0,0.01]
[1610069831364,0.13632608,37951.0,37922.0,0.09863]
[1610069831561,0.13632608,37951.0,37870.0,0.01957831]
[1610069831764,0.13632608,37951.0,37929.0,0.00026293]
[1610069831963,3.516,37932.0,37929.0,0.00026293]
[1610069832762,0.13632608,37930.0,37929.0,0.00026293]
[1610069832963,0.13632608,37930.0,37895.0,0.13632608]
[1610069833161,0.13632608,37930.0,37870.0,0.01957831]
[1610069834364,4.0596,37923.0,37870.0,0.01957831]
[1610069834564,4.15159,37923.0,37870.0,0.01957831]
[1610069834764,0.13632608,37919.0,37870.0,0.01957831]
[1610069835465,0.13632608,37919.0,37871.0,0.12947319]
[1610069835865,0.13632608,37919.0,37872.0,0.00026319]
[1610069836066,3.1572,37881.0,37872.0,0.00026319]
[1610069836265,4.0514,37873.0,37872.0,0.00026319]
[1610069836466,4.0514,37873.0,37870.0,0.01957831]
[1610069836869,0.13632608,37871.0,37870.0,0.01957831]
[1610069837466,0.13632608,37871.0,37870.0,7.831e-05]
[1610069837867,4.3919,37847.0,37793.0,2.30514701]
[1610069838069,4.3919,37847.0,37813.0,0.00026345]
[1610069838268,4.3919,37847.0,37813.0,0.10327345]
[1610069838868,0.13632608,37814.0,37813.0,0.10301]
[1610069839270,3.2218,37823.0,37813.0,0.10301]
[1610069840769,3.2218,37823.0,37822.0,0.13632608]
[1610069841669,0.11901,37881.0,37822.0,0.13632608]
[1610069841870,0.13367,37892.0,37822.0,0.25021608]
[1610069842072,4.4034,37905.0,37822.0,0.25021608]
[1610069842872,0.13632608,37864.0,37862.0,0.13632608]
[1610069843072,0.13632608,37864.0,37822.0,0.11389]
[1610069844874,0.13632608,37854.0,37846.0,0.13632608]
[1610069845074,0.13632608,37854.0,37822.0,0.11389]
[1610069845275,0.24218608,37854.0,37822.0,0.11389]
[1610069846275,0.69798608,37854.0,37822.0,0.11389]
[1610069846874,0.13632608,37823.0,37815.0,0.13632608]
[1610069847473,0.13632608,37823.0,37813.0,0.10301]
[1610069847674,0.13632608,37823.0,37785.0,3.9995]
[1610069847874,0.13632608,37823.0,37754.0,0.01957831]
[1610069848874,0.10773,37831.0,37812.0,0.13632608]
[1610069849280,0.10773,37831.0,37813.0,0.02229357]
[1610069850876,0.13632608,37814.0,37808.0,0.02229446]
[1610069851879,0.1338,37840.0,37808.0,0.02229446]
[1610069852178,4.4266,37847.0,37808.0,0.02229446]
[1610069852778,0.13632608,37831.0,37824.0,0.13632608]
[1610069852979,0.13632608,37831.0,37808.0,0.02229446]
[1610069854683,0.4392,37830.0,37808.0,0.02229446]
[1610069854884,0.13632608,37809.0,37808.0,0.02229446]
[1610069855689,0.13632608,37809.0,37808.0,0.00027026]
[1610069856887,0.13632608,37809.0,37808.0,0.02230248]
[1610069857088,0.13632608,37809.0,37787.0,0.13632608]
[1610069857289,0.13632608,37809.0,37690.0,2.38380697]
[1610069857487,4.4069,37803.0,37753.0,0.0477381]
[1610069857689,4.4069,37803.0,37721.0,3.9939]
[1610069857690,4.4069,37803.0,37755.0,0.02230694]
[1610069857887,4.4069,37803.0,37755.0,0.13983694]
[1610069858290,4.4069,37803.0,37756.0,0.02230817]
[1610069858892,0.13632608,37767.0,37756.0,0.02230817]
[1610069859192,4.4069,37803.0,37756.0,0.02230817]
[1610069859391,0.13354,37827.0,37756.0,0.02230817]
[1610069859594,4.3751,37792.0,37756.0,0.02230817]
[1610069860392,0.13354,37827.0,37756.0,0.02230817]
[1610069860594,4.1075,37783.0,37756.0,0.02230817]
[1610069860792,0.13632608,37757.0,37756.0,0.15863425]
[1610069860991,4.1075,37783.0,37756.0,0.15863425]
[1610069861592,3.4147,37828.0,37757.0,0.02231657]
[1610069862798,0.13632608,37784.0,37771.0,0.13632608]
[1610069863396,0.13632608,37784.0,37772.0,0.02230978]
[1610069863794,0.13632608,37784.0,37772.0,0.11679978]
[1610069864196,0.12797,37819.0,37773.0,0.02231518]
[1610069864794,0.13632608,37799.0,37787.0,0.13632608]
[1610069864995,0.12797,37819.0,37787.0,0.13632608]
[1610069865196,0.12797,37819.0,37788.0,0.02231119]
[1610069865599,0.08596,37836.0,37788.0,0.02231119]
[1610069865798,3.7255,37857.0,37788.0,0.02231119]
[1610069865999,0.2816,37919.0,37788.0,0.02231119]
[1610069866199,3.1648,37888.0,37788.0,0.02231119]
[1610069866400,0.31665877,37942.0,37788.0,0.02231119]
[1610069866600,0.31775472,37946.0,37788.0,0.02231119]
[1610069866800,4.2773,37925.0,37848.0,0.13632608]
[1610069867000,4.36057,37925.0,37788.0,0.02231119]
[1610069867602,4.36057,37925.0,37789.0,0.2777]
[1610069867802,4.36057,37925.0,37789.0,0.5549]
[1610069868005,0.2948,37924.0,37789.0,0.5549]
[1610069868203,0.2948,37924.0,37790.0,0.02229219]
[1610069868802,0.2948,37924.0,37871.0,0.13632608]
[1610069869202,0.2948,37924.0,37872.0,0.02228319]
[1610069871407,0.08327,37925.0,37869.0,0.02226687]
[1610069871808,0.08327,37925.0,37873.0,0.02227029]
[1610069872007,0.2841,37948.0,37870.0,0.02226913]
[1610069872209,0.2841,37948.0,37874.0,0.02226565]
[1610069872210,0.2906,37947.0,37874.0,0.02226565]
[1610069872408,0.2906,37947.0,37874.0,0.02199574]
[1610069872610,0.2906,37947.0,37871.0,0.02226402]
[1610069872809,0.4127,37947.0,37875.0,0.0222629]
[1610069873009,0.13632608,37915.0,37912.0,0.13632608]
[1610069873208,0.09587,37917.0,37912.0,0.13632608]
[1610069873408,0.13234,37925.0,37912.0,0.13632608]
[1610069873608,0.13234,37925.0,37913.0,0.00026984]
[1610069873808,0.13234,37925.0,37913.0,0.02225694]
[1610069874209,0.1221,37947.0,37913.0,0.02225694]
[1610069874409,0.1221,37947.0,37913.0,0.00026984]
[1610069874608,0.1221,37947.0,37914.0,0.00026977]
[1610069875008,0.1221,37947.0,37908.0,0.1069]
[1610069875009,0.13632608,37924.0,37920.0,0.13632608]
[1610069875209,0.13632608,37924.0,37913.0,0.02225214]
[1610069875408,0.13632608,37924.0,37921.0,0.00026976]
[1610069875811,0.13632608,37924.0,37914.0,0.02225353]
[1610069876009,0.22698608,37924.0,37909.0,0.022257]
[1610069876209,0.22698608,37924.0,37915.0,0.00026985]
[1610069876609,0.22698608,37924.0,37897.0,0.02226143]
[1610069876809,0.22698608,37924.0,37897.0,0.00026985]
[1610069877009,0.13632608,37898.0,37877.0,0.13647]
[1610069877410,0.09159,37899.0,37878.0,0.02226601]
[1610069878210,0.09066,37924.0,37878.0,0.02226601]
[1610069878809,0.09066,37924.0,37884.0,4.0974]
[1610069879009,0.09066,37924.0,37923.0,0.13632608]
[1610069879611,0.09066,37924.0,37923.0,0.13659584]
[1610069879811,0.09066,37924.0,37923.0,0.00026976]
[1610069880312,0.09066,37924.0,37904.0,0.02225433]
[1610069880513,0.09066,37924.0,37904.0,0.00026976]
[1610069880913,0.11924,37933.0,37916.0,0.13632608]
[1610069881111,0.3401367,37990.0,37916.0,0.13632608]
[1610069881512,0.3401367,37990.0,37905.0,0.08666]
[1610069881913,0.2759,37973.0,37906.0,0.6082]
[1610069882113,0.39803,37973.0,37906.0,0.6082]
[1610069882312,0.39803,37973.0,37907.0,0.02224871]
[1610069882916,0.39803,37973.0,37942.0,0.13632608]
[1610069883316,0.39803,37973.0,37943.0,0.00026964]
[1610069884516,0.12213,37973.0,37943.0,0.00026964]
[1610069884918,0.12213,37973.0,37972.0,0.13632608]
[1610069885520,0.00523,37973.0,37972.0,0.13632608]
[1610069885718,0.1569,38011.0,37972.0,0.13632608]
[1610069885918,0.2815,38031.0,37972.0,0.13632608]
[1610069886120,0.34637206,38032.0,37972.0,0.13632608]
[1610069886320,0.34659591,38035.0,37972.0,0.13632608]
[1610069886719,0.2963,38040.0,37975.0,4.2501]
[1610069887119,0.3484072,38053.0,37975.0,4.34965]
[1610069887519,0.2742,38056.0,37976.0,0.00026927]
[1610069887718,0.34841791,38060.0,37976.0,0.00026927]
[1610069887918,0.34850207,38064.0,37976.0,0.00026927]
[1610069888120,0.2938,38059.0,37976.0,0.00026927]
[1610069888922,0.13632608,38050.0,38048.0,0.13632608]
[1610069889122,0.09393,38050.0,38048.0,0.13632608]
[1610069889323,0.09393,38050.0,38048.0,0.0559141]
[1610069889521,0.09393,38050.0,38025.0,2.9446]
[1610069889723,0.09393,38050.0,37998.0,2.973]
[1610069890722,0.09375,38050.0,37998.0,2.973]
[1610069890922,0.09375,38050.0,38022.0,0.13632608]
[1610069891122,0.09375,38050.0,38006.0,0.12525]
[1610069892123,0.09375,38050.0,37975.0,0.09955]
[1610069892324,0.09375,38050.0,37968.0,3.7538]
[1610069892923,0.09375,38050.0,37985.0,0.13632608]
[1610069893323,0.1569,38049.0,37985.0,0.13632608]
[1610069893724,0.1569,38049.0,37968.0,3.7538]
[1610069894725,3.3299,38035.0,37936.0,3.1134]
[1610069895126,3.46,38035.0,37936.0,3.1134]
[1610069895526,3.46,38035.0,37937.0,0.00026943]
[1610069895726,3.46,38035.0,37937.0,0.09972943]
[1610069896327,3.46,38035.0,37938.0,0.00026947]
[1610069896926,3.46,38035.0,37978.0,0.13632608]
[1610069897328,0.1301,38035.0,37978.0,0.13632608]
[1610069898328,0.4382469,38035.0,37978.0,0.13632608]
[1610069898929,0.13632608,37999.0,37994.0,0.13632608]
[1610069899130,0.09474,37999.0,37994.0,0.13632608]
[1610069899328,0.09474,37999.0,37962.0,3.0701]
[1610069899729,0.09474,37999.0,37963.0,0.00026932]
[1610069899929,0.09474,37999.0,37963.0,0.13330932]
[1610069900130,0.4382469,38035.0,37963.0,0.13330932]
[1610069900329,0.4382469,38035.0,37964.0,0.00026912]
[1610069900930,0.4382469,38035.0,38024.0,0.13632608]
[1610069902931,0.4382469,38035.0,38033.0,0.13632608]
[1610069905237,0.4382469,38035.0,38034.0,0.00025817]
[1610069905938,0.4382469,38035.0,38033.0,0.13632608]
[1610069906342,0.4382469,38035.0,38034.0,0.00025812]
[1610069906540,0.4382469,38035.0,38033.0,0.13632608]
[1610069906742,0.4382469,38035.0,38034.0,0.00025813]
[1610069909541,0.4382469,38035.0,38034.0,0.01679028]
[1610069911744,0.3081469,38035.0,38034.0,0.01679028]
[1610069912046,1.5822769,38107.0,38034.0,0.01679028]
[1610069912245,0.1569,38140.0,38034.0,0.01679028]
[1610069912446,0.1569,38140.0,38035.0,0.2698]
[1610069912644,0.1569,38140.0,38044.0,3.3765]
[1610069912846,0.1569,38140.0,38044.0,3.47533]
[1610069913047,0.1569,38140.0,38081.0,0.13632608]
[1610069914048,0.1569,38140.0,38056.0,0.08787]
[1610069914447,0.26448,38140.0,38056.0,0.08787]
[1610069914650,0.26448,38140.0,38057.0,0.00025795]
[1610069915049,0.13632608,38078.0,38070.0,0.13632608]
[1610069915450,0.13632608,38078.0,38057.0,0.00025795]
[1610069915651,0.13632608,38078.0,38071.0,0.00025795]
[1610069915850,0.13632608,38078.0,38058.0,0.00025797]
[1610069916252,0.13632608,38078.0,38045.0,0.0167836]
[1610069916454,0.13632608,38078.0,38059.0,0.00025795]
[1610069916656,0.13632608,38078.0,38046.0,0.00025801]
[1610069917055,0.13632608,38047.0,38033.0,0.13632608]
[1610069917257,0.23853608,38047.0,38037.0,0.01652893]
[1610069917455,0.23853608,38047.0,38034.0,0.01678907]
[1610069917857,0.23853608,38047.0,38017.0,0.01679106]
[1610069918055,0.23853608,38047.0,38035.0,0.0002581]
[1610069918258,0.23853608,38047.0,38018.0,0.01679368]
[1610069918657,0.23853608,38047.0,38017.0,0.0167936]
[1610069918857,0.23853608,38047.0,38019.0,0.01679315]
[1610069919057,0.23853608,38047.0,38035.0,0.13632608]
[1610069919058,0.13632608,38039.0,38035.0,0.13632608]
[1610069919358,0.13632608,38039.0,38036.0,0.00025812]
[1610069919561,0.10221,38047.0,38036.0,0.00025812]
[1610069920760,0.12446,38082.0,38036.0,0.00025812]
[1610069920960,0.13632608,38068.0,38059.0,0.13632608]
[1610069921361,0.22999608,38068.0,38059.0,0.13632608]
[1610069921560,0.09367,38068.0,38060.0,0.00025803]
[1610069922162,0.09367,38068.0,38059.0,0.13632608]
[1610069922364,0.09367,38068.0,38061.0,0.00025795]
[1610069922763,0.5724,38127.0,38061.0,0.09775]
[1610069922962,0.13632608,38095.0,38082.0,0.13632608]
[1610069923163,0.24251608,38095.0,38082.0,0.13632608]
[1610069923363,0.24251608,38095.0,38083.0,0.0002579]
[1610069924964,0.13632608,38090.0,38083.0,0.0002579]
[1610069926363,0.13632608,38090.0,38070.0,0.00025821]
[1610069926564,0.13632608,38090.0,38084.0,0.00025824]
[1610069926763,0.13632608,38090.0,37969.0,2.43682648]
[1610069926965,0.10619,38095.0,38047.0,0.13632608]
[1610069927363,0.10619,38095.0,38035.0,0.11185]
[1610069927567,0.10619,38095.0,38048.0,0.01681578]
[1610069927764,0.10619,38095.0,38036.0,0.01681734]
[1610069927964,0.10619,38095.0,38049.0,0.0168191]
[1610069928165,0.2847,38101.0,38049.0,0.0168191]
[1610069928364,0.2847,38101.0,38037.0,0.01681996]
[1610069928563,0.2847,38101.0,38050.0,0.01682129]
[1610069928764,0.2847,38101.0,38038.0,0.01679803]
[1610069928965,0.13632608,38039.0,38038.0,0.01679803]
[1610069929166,0.13632608,38039.0,38027.0,0.13632608]
[1610069929367,0.13632608,38039.0,38038.0,0.01680057]
[1610069929567,0.13632608,38039.0,38028.0,0.01680095]
[1610069929968,0.13632608,38039.0,38015.0,0.13205]
[1610069929969,0.13632608,38039.0,38038.0,0.01680176]
[1610069930169,0.13632608,38039.0,38029.0,0.01680449]
[1610069930368,0.13632608,38039.0,38038.0,0.01680511]
[1610069930769,0.13632608,38039.0,38001.0,0.13452]
[1610069930770,0.13632608,38039.0,38030.0,0.01680522]
[1610069930970,0.10043,38040.0,38038.0,0.01680615]
[1610069931170,0.10043,38040.0,37996.0,0.13632608]
[1610069931570,4.37593,38040.0,37997.0,0.01680902]
[1610069932971,0.13632608,37998.0,37997.0,0.01680902]
[1610069933170,0.13632608,37998.0,37994.0,0.01681668]
[1610069933371,0.26144608,37998.0,37997.0,0.0168179]
[1610069933570,0.26144608,37998.0,37995.0,0.01681902]
[1610069933771,4.383,37996.0,37995.0,0.01681902]
[1610069933971,4.383,37996.0,37954.0,0.09764]
[1610069934172,4.383,37996.0,37995.0,0.01682289]
[1610069934372,0.26144608,37998.0,37995.0,0.01656441]
[1610069934571,0.26144608,37998.0,37955.0,0.01682507]
[1610069934772,0.26144608,37998.0,37996.0,0.01682633]
[1610069934971,0.81364608,37998.0,37956.0,0.01682759]
[1610069935174,0.81364608,37998.0,37997.0,0.01682838]
[1610069935374,0.81364608,37998.0,37953.0,0.13632608]
[1610069935572,0.26144608,37998.0,37953.0,0.13632608]
[1610069935772,0.26144608,37998.0,37954.0,0.01683052]
[1610069936173,0.26144608,37998.0,37954.0,0.01657192]
[1610069936374,0.26144608,37998.0,37954.0,0.01683047]
[1610069936978,0.12512,37998.0,37997.0,0.13632608]
[1610069937377,0.12512,37998.0,37997.0,0.13658457]
[1610069937981,0.12512,37998.0,37997.0,0.15314168]
[1610069938179,0.10043,38040.0,37997.0,0.15314168]
[1610069938378,0.10043,38040.0,37997.0,0.25872168]
[1610069938580,3.353,38051.0,37997.0,0.25872168]
[1610069938779,3.353,38051.0,37998.0,0.01683103]
[1610069938978,0.13632608,38041.0,38040.0,0.13632608]
[1610069939179,0.2763,38068.0,38040.0,0.13632608]
[1610069939378,4.3619,38080.0,38022.0,0.10121]
[1610069939578,4.3619,38080.0,38041.0,0.00025858]
[1610069939779,4.3619,38080.0,38023.0,0.0168298]
[1610069939980,4.49146,38080.0,38023.0,0.0168298]
[1610069940180,0.0778,38079.0,38023.0,0.0168298]
[1610069940380,4.49146,38080.0,38023.0,0.0168298]
[1610069941183,0.24823608,38068.0,38023.0,0.0168298]
[1610069942886,0.5879,38067.0,38023.0,0.0168298]
[1610069943085,0.5879,38067.0,38033.0,0.13632608]
[1610069943284,0.5879,38067.0,38023.0,0.0168298]
[1610069943484,0.11191,38068.0,38023.0,0.0168298]
[1610069943685,3.846,38066.0,38034.0,0.00025816]
[1610069943884,0.11191,38068.0,38024.0,0.01680277]
[1610069944084,3.1517,38059.0,38035.0,0.0002582]
[1610069944486,3.24186,38059.0,38025.0,0.0002582]
[1610069944686,3.24186,38059.0,38036.0,0.0002582]
[1610069944886,3.24186,38059.0,38026.0,0.00025823]
[1610069944887,0.09016,38059.0,38026.0,0.00025823]
[1610069945086,0.13632608,38042.0,38028.0,0.13632608]
[1610069945287,0.26030608,38042.0,38037.0,0.00025821]
[1610069945486,0.26030608,38042.0,38029.0,0.00025821]
[1610069945688,0.26030608,38042.0,38038.0,0.00025818]
[1610069945987,0.26030608,38042.0,38030.0,0.00025818]
[1610069946187,0.26030608,38042.0,38039.0,0.00025818]
[1610069946588,0.26030608,38042.0,38029.0,0.01654458]
[1610069946589,0.26030608,38042.0,38029.0,0.0002582]
[1610069946788,0.26030608,38042.0,38030.0,0.0002582]
[1610069947193,0.13632608,38033.0,38024.0,0.13632608]
[1610069947389,0.26354608,38033.0,38024.0,0.13632608]
[1610069947589,0.26354608,38033.0,38025.0,0.00025822]
[1610069949193,0.13632608,38026.0,38025.0,0.00025822]
[1610069949794,0.12722,38033.0,38025.0,0.00025822]
[1610069950395,0.12398,38042.0,38025.0,0.00025822]
[1610069950796,0.51560024,38059.0,38025.0,0.01679821]
[1610069950994,0.51560024,38059.0,38025.0,0.13024821]
[1610069951195,0.13632608,38046.0,38025.0,0.13024821]
[1610069951395,0.26806608,38046.0,38026.0,0.01679567]
[1610069952198,4.2819,38042.0,38026.0,0.01679567]
[1610069952600,0.26806608,38046.0,38026.0,0.01679567]
[1610069952798,2.9914,38027.0,38016.0,0.01680006]
[1610069952997,3.10502,38027.0,37975.0,0.04076377]
[1610069953197,0.13632608,37976.0,37975.0,0.04076377]
[1610069953597,0.13632608,37976.0,37962.0,0.05760195]
[1610069953798,0.13632608,37976.0,37944.0,2.35916053]
[1610069953799,0.23430608,37976.0,37975.0,0.01681549]
[1610069953997,0.23430608,37976.0,37963.0,0.01681767]
[1610069954397,0.23430608,37976.0,37975.0,0.01682054]
[1610069954599,0.23430608,37976.0,37939.0,0.10019]
[1610069954600,3.328,37970.0,37939.0,0.10019]
[1610069954798,0.23430608,37976.0,37975.0,0.0168244]
[1610069955198,0.23430608,37976.0,37939.0,0.10019]
[1610069955199,0.02,37962.0,37943.0,0.13632608]
[1610069955398,0.02,37962.0,37939.0,0.10019]
[1610069955599,0.02,37962.0,37944.0,0.01682384]
[1610069956001,0.02,37962.0,37940.0,0.01682595]
[1610069956199,0.02,37962.0,37945.0,0.0168263]
[1610069956399,0.02,37962.0,37941.0,0.01682745]
[1610069956799,0.02,37962.0,37940.0,0.0168296]
[1610069956999,0.02,37962.0,37942.0,0.01682901]
[1610069957199,0.02,37962.0,37955.0,0.13632608]
[1610069957401,0.02,37962.0,37941.0,0.01682984]
[1610069957600,0.02,37962.0,37956.0,0.01682988]
[1610069957800,0.02,37962.0,37942.0,0.01682947]
[1610069958001,0.02,37962.0,37957.0,0.01682967]
[1610069958400,0.02,37962.0,37958.0,0.00025864]
[1610069958401,3.2877,37960.0,37958.0,0.00025864]
[1610069958602,3.2877,37960.0,37958.0,0.01683043]
[1610069958801,3.2877,37960.0,37957.0,0.00025864]
[1610069959201,0.13632608,37958.0,37957.0,0.00025864]
[1610069959602,0.13632608,37958.0,37957.0,0.00051732]
[1610069960403,0.13632608,37958.0,37957.0,0.00025864]
[1610069960602,0.13632608,37958.0,37957.0,0.00051731]
[1610069960803,0.13632608,37958.0,37957.0,0.00025864]
[1610069961002,0.13632608,37958.0,37957.0,0.00051706]
[1610069961402,0.13632608,37958.0,37957.0,0.00025864]
[1610069961602,0.13632608,37958.0,37957.0,0.00051704]
[1610069961802,0.13632608,37958.0,37957.0,0.00025864]
[1610069962202,0.13632608,37958.0,37957.0,0.00051704]
[1610069962404,0.13632608,37958.0,37957.0,0.00025864]
[1610069962603,0.13632608,37958.0,37957.0,0.00051704]
[1610069962903,0.13632608,37958.0,37957.0,0.00025864]
[1610069963103,0.13632608,37958.0,37957.0,0.00051704]
[1610069963504,0.29177292,37962.0,37957.0,0.00051704]
[1610069964104,0.29177292,37962.0,37957.0,0.00025864]
[1610069964504,0.29177292,37962.0,37957.0,0.02210731]
[1610069965005,0.29177292,37962.0,37957.0,0.02237631]
[1610069965204,0.29177292,37962.0,37961.0,0.13632608]
[1610069965604,0.29177292,37962.0,37961.0,0.15843664]
[1610069966505,4.1783,38010.0,37961.0,0.15843664]
[1610069966707,3.9179,38051.0,37961.0,0.15843664]
[1610069966905,3.9179,38051.0,37962.0,0.02210398]
[1610069967306,0.35959422,38062.0,38016.0,0.13632608]
[1610069967506,0.36050166,38068.0,38016.0,0.13632608]
[1610069967705,0.36050166,38068.0,38017.0,0.00026879]
[1610069967906,0.36149914,38072.0,38017.0,0.00026879]
[1610069968306,0.42239487,38051.0,38017.0,0.00026879]
[1610069968505,0.54699487,38051.0,38017.0,0.00026879]
[1610069968908,0.54699487,38051.0,38015.0,0.0002687]
[1610069969105,0.54699487,38051.0,38018.0,0.0002687]
[1610069969306,0.54699487,38051.0,38016.0,0.0002687]
[1610069969607,0.54699487,38051.0,38015.0,0.0002687]
[1610069970010,0.54699487,38051.0,38017.0,0.0002687]
[1610069970210,0.54699487,38051.0,38016.0,0.00026873]
[1610069970409,0.54699487,38051.0,38018.0,0.00026873]
[1610069970810,0.54699487,38051.0,37996.0,0.09532]
[1610069970811,0.54699487,38051.0,38017.0,0.00026873]
[1610069971010,0.54699487,38051.0,38019.0,0.00026873]
[1610069971211,0.13632608,38020.0,38018.0,0.00026873]
[1610069971412,0.09009,38036.0,38018.0,0.00026873]
[1610069971611,0.09009,38036.0,38016.0,0.02209292]
[1610069971810,0.09009,38036.0,38019.0,0.00026906]
[1610069972011,0.09009,38036.0,38017.0,0.00026906]
[1610069972411,0.09009,38036.0,38016.0,0.02209325]
[1610069972613,0.09009,38036.0,38018.0,0.00026902]
[1610069973013,0.09009,38036.0,38017.0,0.00026902]
[1610069973214,0.09009,38036.0,38035.0,0.13632608]
[1610069973815,0.13632608,38046.0,38035.0,0.13659508]
[1610069974018,0.54699487,38051.0,38035.0,0.13659508]
[1610069974220,0.54699487,38051.0,38036.0,0.00026898]
[1610069975218,0.54699487,38051.0,38050.0,0.13632608]
[1610069975416,0.42239487,38051.0,38050.0,0.13632608]
[1610069975616,0.42239487,38051.0,38050.0,0.23193499]
[1610069976418,0.42239487,38051.0,38050.0,0.09560891]
[1610069976619,0.42239487,38051.0,38050.0,0.00026891]
[1610069977020,0.42239487,38051.0,38033.0,0.02211049]
[1610069977218,0.42239487,38051.0,38050.0,0.00026891]
[1610069977418,0.42239487,38051.0,38034.0,0.00026893]
[1610069977819,0.42239487,38051.0,38033.0,0.00026895]
[1610069978020,0.42239487,38051.0,38035.0,0.00026898]
[1610069978225,0.42239487,38051.0,38034.0,0.00026898]
[1610069978623,0.42239487,38051.0,38023.0,0.00026898]
[1610069978824,0.42239487,38051.0,38035.0,0.00026898]
[1610069979024,0.42239487,38051.0,38024.0,0.00026898]
[1610069979226,0.13632608,38049.0,38042.0,0.13632608]
[1610069979625,0.13632608,38049.0,38043.0,0.00026898]
[1610069980425,0.42239487,38051.0,38043.0,0.00026898]
[1610069981224,0.42239487,38051.0,38050.0,0.13632608]
[1610069981828,0.42239487,38051.0,38050.0,0.13659496]
[1610069982327,0.42239487,38051.0,38050.0,0.25185197]
[1610069982528,0.1569,38095.0,38050.0,0.25185197]
[1610069982930,0.54766468,38115.0,38050.0,0.25185197]
[1610069982931,0.01262469,38118.0,38050.0,0.25185197]
[1610069983130,0.01262469,38118.0,38051.0,0.02206405]
[1610069983333,0.6251096,38128.0,38051.0,0.02206405]
[1610069983334,0.13632608,38111.0,38105.0,0.13632608]
[1610069983529,0.23383608,38111.0,38105.0,0.13632608]
[1610069983732,0.09751,38111.0,38105.0,0.13472009]
[1610069984731,0.09658,38123.0,38106.0,0.00026824]
[1610069984930,0.09487,38113.0,38106.0,0.00026824]
[1610069985132,0.09487,38113.0,38091.0,0.11774]
[1610069985331,0.13632608,38101.0,38091.0,0.11774]
[1610069985539,0.13632608,38101.0,38092.0,0.00026824]
[1610069986335,0.13632608,38101.0,38083.0,0.12426]
[1610069987142,0.13632608,38101.0,38050.0,0.09342]
[1610069987338,0.13646,38103.0,38068.0,0.13632608]
[1610069989340,0.13646,38103.0,38075.0,0.13632608]
[1610069990941,0.13646,38103.0,38076.0,0.0002684]